[Event "Early-Titled-Tuesday-Blitz-November-28-2023"]
[Site "Chess.com"]
[Date "2023.11.28"]
[Round "6"]
[White "elchacal664"]
[Black "ArtemDyachuk"]
[Result "0-1"]
[WhiteElo "2339"]
[BlackElo "2516"]
[TimeControl "180+1"]
[EndTime "9:15:05 PST"]
[Termination "ArtemDyachuk won by resignation"]

1. e4 {[%clk 0:03:00.9]} 1... c5 {[%clk 0:02:55.1]} 2. c4 {[%clk 0:03:00.8]}
2... Nc6 {[%clk 0:02:51.8]} 3. Nf3 {[%clk 0:03:00.2]} 3... Nf6 {[%clk
0:02:49.8]} 4. Nc3 {[%clk 0:02:59.1]} 4... e6 {[%clk 0:02:49.3]} 5. g3 {[%clk
0:02:42.2]} 5... Be7 {[%clk 0:02:45.2]} 6. Bg2 {[%clk 0:02:42.1]} 6... O-O
{[%clk 0:02:44.6]} 7. O-O {[%clk 0:02:41.2]} 7... d6 {[%clk 0:02:44.3]} 8. b3
{[%clk 0:02:38.6]} 8... e5 {[%clk 0:02:41.5]} 9. h3 {[%clk 0:02:36.5]} 9... a6
{[%clk 0:02:34.8]} 10. d3 {[%clk 0:02:32.5]} 10... Rb8 {[%clk 0:02:34]} 11. a4
{[%clk 0:02:26.8]} 11... Nd4 {[%clk 0:02:29.2]} 12. Nxd4 {[%clk 0:02:26.4]}
12... cxd4 {[%clk 0:02:29.2]} 13. Ne2 {[%clk 0:02:25.8]} 13... b5 {[%clk
0:02:28.2]} 14. axb5 {[%clk 0:02:25.5]} 14... axb5 {[%clk 0:02:29.1]} 15. f4
{[%clk 0:02:25.2]} 15... Nd7 {[%clk 0:02:17.2]} 16. g4 {[%clk 0:02:09.5]} 16...
bxc4 {[%clk 0:02:11.9]} 17. bxc4 {[%clk 0:02:09.2]} 17... Nc5 {[%clk 0:02:10.9]}
18. Ba3 {[%clk 0:02:07.2]} 18... exf4 {[%clk 0:02:07.4]} 19. Nxf4 {[%clk
0:01:59.9]} 19... Bf6 {[%clk 0:02:03.3]} 20. Nd5 {[%clk 0:01:58.3]} 20... Be5
{[%clk 0:02:02.6]} 21. Bxc5 {[%clk 0:01:52.3]} 21... dxc5 {[%clk 0:02:01.7]} 22.
Rb1 {[%clk 0:01:38.2]} 22... Be6 {[%clk 0:01:50.1]} 23. Rxb8 {[%clk 0:01:35.9]}
23... Qxb8 {[%clk 0:01:51]} 24. Qb1 {[%clk 0:01:30.6]} 24... Qd6 {[%clk
0:01:47.1]} 25. Qb6 {[%clk 0:01:24.2]} 25... Rb8 {[%clk 0:01:38.8]} 26. Qxd6
{[%clk 0:01:22]} 26... Bxd6 {[%clk 0:01:39.7]} 27. Bf3 {[%clk 0:01:16.2]} 27...
Rb2 {[%clk 0:01:37.6]} 28. Rf2 {[%clk 0:01:15.4]} 28... Rb1+ {[%clk 0:01:33.5]}
29. Rf1 {[%clk 0:01:14.8]} 29... Rb2 {[%clk 0:01:31.6]} 30. Rf2 {[%clk
0:01:14.8]} 30... Rb3 {[%clk 0:01:32]} 31. Be2 {[%clk 0:01:14.2]} 31... Rb1+
{[%clk 0:01:29.9]} 32. Rf1 {[%clk 0:01:13.9]} 32... Rb2 {[%clk 0:01:30.1]} 33.
Rf2 {[%clk 0:01:13.8]} 33... h6 {[%clk 0:01:29.2]} 34. Bf1 {[%clk 0:01:12]}
34... Rb1 {[%clk 0:01:27.3]} 35. Kg2 {[%clk 0:01:11.4]} 35... Kf8 {[%clk
0:01:26.5]} 36. Be2 {[%clk 0:01:11.2]} 36... Be5 {[%clk 0:01:22.2]} 37. Rf1
{[%clk 0:01:06.8]} 37... Rb2 {[%clk 0:01:21.4]} 38. Rf2 {[%clk 0:01:07.2]} 38...
Rb1 {[%clk 0:01:19.2]} 39. Rf1 {[%clk 0:01:07.1]} 39... Rb7 {[%clk 0:01:19.8]}
40. Bf3 {[%clk 0:01:02.4]} 40... g6 {[%clk 0:01:18.8]} 41. Be2 {[%clk
0:01:02.1]} 41... Rb2 {[%clk 0:01:18.5]} 42. Rf2 {[%clk 0:01:01.7]} 42... Rb1
{[%clk 0:01:18.8]} 43. Rf1 {[%clk 0:01:01.9]} 43... Rb2 {[%clk 0:01:19.3]} 44.
Rf2 {[%clk 0:01:02.1]} 44... Kg7 {[%clk 0:01:19.7]} 45. Bf3 {[%clk 0:01:01.4]}
45... Rb1 {[%clk 0:01:19.6]} 46. Rf1 {[%clk 0:01:01.3]} 46... Rb2+ {[%clk
0:01:18.7]} 47. Rf2 {[%clk 0:01:01.5]} 47... Rb3 {[%clk 0:01:18.7]} 48. Be2
{[%clk 0:01:00.9]} 48... Ra3 {[%clk 0:01:14.3]} 49. Rf1 {[%clk 0:00:59.9]} 49...
Kf8 {[%clk 0:01:13]} 50. Rf2 {[%clk 0:00:56.7]} 50... Ke8 {[%clk 0:01:12.3]} 51.
Rf1 {[%clk 0:00:55.6]} 51... Kd7 {[%clk 0:01:11.5]} 52. Rf2 {[%clk 0:00:55.1]}
52... Kd6 {[%clk 0:01:11.7]} 53. Rf1 {[%clk 0:00:54.4]} 53... Ra2 {[%clk
0:01:12.1]} 54. Rf2 {[%clk 0:00:54.4]} 54... Ra1 {[%clk 0:01:11.6]} 55. Rf1
{[%clk 0:00:54.4]} 55... Ra3 {[%clk 0:01:11.2]} 56. Rf2 {[%clk 0:00:52.3]} 56...
Kc6 {[%clk 0:01:04.1]} 57. Rf1 {[%clk 0:00:47.8]} 57... Ra2 {[%clk 0:01:02.3]}
58. Rf2 {[%clk 0:00:47.7]} 58... Kb7 {[%clk 0:01:02.8]} 59. Bf3 {[%clk 0:00:47]}
59... Ra3 {[%clk 0:01:02.3]} 60. Rb2+ {[%clk 0:00:46.7]} 60... Kc8 {[%clk
0:00:59.3]} 61. Be2 {[%clk 0:00:45.9]} 61... h5 {[%clk 0:00:48.4]} 62. gxh5
{[%clk 0:00:45.3]} 62... gxh5 {[%clk 0:00:49.3]} 63. Nb6+ {[%clk 0:00:37.9]}
63... Kd8 {[%clk 0:00:47.3]} 64. Nd5 {[%clk 0:00:37.9]} 64... Ke8 {[%clk
0:00:39.8]} 65. h4 {[%clk 0:00:25]} 65... Kf8 {[%clk 0:00:38.2]} 66. Kf2 {[%clk
0:00:22.2]} 66... Kg7 {[%clk 0:00:34.4]} 67. Rb1 {[%clk 0:00:19.9]} 67... Ra2
{[%clk 0:00:32.3]} 68. Rg1+ {[%clk 0:00:16.3]} 68... Kf8 {[%clk 0:00:28.7]} 69.
Kf1 {[%clk 0:00:15]} 69... Bh3+ {[%clk 0:00:28.5]} 70. Kf2 {[%clk 0:00:15.2]}
70... f6 {[%clk 0:00:26.4]} 71. Rb1 {[%clk 0:00:09.1]} 71... Bg4 {[%clk
0:00:24.4]} 72. Re1 {[%clk 0:00:09.3]} 72... Kf7 {[%clk 0:00:24]} 73. Kf1 {[%clk
0:00:07]} 73... Bh3+ {[%clk 0:00:24.3]} 74. Kf2 {[%clk 0:00:07.2]} 74... Kg6
{[%clk 0:00:20.2]} 75. Rg1+ {[%clk 0:00:06.9]} 75... Bg4 {[%clk 0:00:19.7]} 76.
Kf1 {[%clk 0:00:07.2]} 76... Ra1+ {[%clk 0:00:12.9]} 77. Kf2 {[%clk 0:00:07.1]}
77... Rxg1 {[%clk 0:00:13.4]} 78. Kxg1 {[%clk 0:00:07.3]} 78... Bxe2 {[%clk
0:00:13.5]} 79. Ne7+ {[%clk 0:00:06.8]} 79... Kf7 {[%clk 0:00:13.1]} 80. Nf5
{[%clk 0:00:07.7]} 80... Bxd3 {[%clk 0:00:13]} 81. Ng3 {[%clk 0:00:05.9]} 81...
Bxg3 {[%clk 0:00:11.8]} 0-1

[Event "Early-Titled-Tuesday-Blitz-November-28-2023"]
[Site "Chess.com"]
[Date "2023.11.28"]
[Round "6"]
[White "FairChess_on_YouTube"]
[Black "baki83"]
[Result "0-1"]
[WhiteElo "3071"]
[BlackElo "2831"]
[TimeControl "180+1"]
[EndTime "9:15:19 PST"]
[Termination "baki83 won on time"]

1. d4 {[%clk 0:03:00.9]} 1... d5 {[%clk 0:02:59.3]} 2. c4 {[%clk 0:03:01.2]}
2... e6 {[%clk 0:02:59.8]} 3. Nf3 {[%clk 0:03:00.8]} 3... Nf6 {[%clk 0:03:00]}
4. Bg5 {[%clk 0:03:00.4]} 4... Be7 {[%clk 0:03:00.4]} 5. e3 {[%clk 0:03:00.3]}
5... h6 {[%clk 0:03:00.8]} 6. Bxf6 {[%clk 0:02:59.3]} 6... Bxf6 {[%clk
0:03:01.7]} 7. Qc2 {[%clk 0:02:59.9]} 7... c6 {[%clk 0:03:01.9]} 8. Nbd2 {[%clk
0:02:57.6]} 8... Nd7 {[%clk 0:03:02.5]} 9. h4 {[%clk 0:02:52.8]} 9... g6 {[%clk
0:03:00]} 10. Bd3 {[%clk 0:02:50.5]} 10... Bg7 {[%clk 0:02:58.6]} 11. O-O-O
{[%clk 0:02:43.5]} 11... Qe7 {[%clk 0:02:57.2]} 12. Kb1 {[%clk 0:02:41.6]} 12...
O-O {[%clk 0:02:53]} 13. g4 {[%clk 0:02:36.6]} 13... e5 {[%clk 0:02:46.3]} 14.
cxd5 {[%clk 0:02:33.9]} 14... cxd5 {[%clk 0:02:46.1]} 15. dxe5 {[%clk
0:02:20.7]} 15... Nxe5 {[%clk 0:02:40.1]} 16. Nxe5 {[%clk 0:02:20.8]} 16... Qxe5
{[%clk 0:02:40]} 17. Nf3 {[%clk 0:02:13]} 17... Qf6 {[%clk 0:02:34.5]} 18. Nd4
{[%clk 0:02:12.5]} 18... Bxg4 {[%clk 0:02:34.5]} 19. Rdg1 {[%clk 0:02:12.4]}
19... Rac8 {[%clk 0:02:24.8]} 20. Qd2 {[%clk 0:02:09.7]} 20... h5 {[%clk
0:02:18.3]} 21. Rg3 {[%clk 0:01:52.6]} 21... Bh6 {[%clk 0:02:05.8]} 22. Bc2
{[%clk 0:01:40.6]} 22... Rfe8 {[%clk 0:02:04.9]} 23. Rhg1 {[%clk 0:01:38.1]}
23... Kh8 {[%clk 0:01:59.8]} 24. Rxg4 {[%clk 0:01:27.3]} 24... hxg4 {[%clk
0:01:59.6]} 25. Rxg4 {[%clk 0:01:28.2]} 25... Re5 {[%clk 0:01:53.7]} 26. a3
{[%clk 0:01:21.8]} 26... Rh5 {[%clk 0:01:51]} 27. Qb4 {[%clk 0:01:06.6]} 27...
b6 {[%clk 0:01:26.4]} 28. f4 {[%clk 0:01:01.2]} 28... Rxh4 {[%clk 0:01:23.8]}
29. Rg1 {[%clk 0:00:59.9]} 29... Bg7 {[%clk 0:01:22.4]} 30. Qb5 {[%clk
0:00:51.8]} 30... Rh2 {[%clk 0:01:17.9]} 31. Bb3 {[%clk 0:00:44.1]} 31... Qe7
{[%clk 0:01:12.9]} 32. Qd3 {[%clk 0:00:37.8]} 32... Qe4 {[%clk 0:01:08.4]} 33.
Qxe4 {[%clk 0:00:33.6]} 33... dxe4 {[%clk 0:01:09.3]} 34. Bxf7 {[%clk
0:00:33.4]} 34... Bxd4 {[%clk 0:01:09.2]} 35. exd4 {[%clk 0:00:34.1]} 35... e3
{[%clk 0:01:09.6]} 36. Bxg6 {[%clk 0:00:29.5]} 36... Rc4 {[%clk 0:01:01.1]} 37.
Re1 {[%clk 0:00:26.5]} 37... Rh3 {[%clk 0:00:49.6]} 38. d5 {[%clk 0:00:20.5]}
38... Rxf4 {[%clk 0:00:48.9]} 39. d6 {[%clk 0:00:21]} 39... Rd4 {[%clk
0:00:45.9]} 40. d7 {[%clk 0:00:20.9]} 40... Rf3 {[%clk 0:00:39.5]} 41. Bh5
{[%clk 0:00:17.7]} 41... Rg3 {[%clk 0:00:34.8]} 42. Rd1 {[%clk 0:00:16]} 42...
Rxd1+ {[%clk 0:00:30.7]} 43. Bxd1 {[%clk 0:00:16.9]} 43... Rg8 {[%clk
0:00:30.9]} 44. Kc2 {[%clk 0:00:17.3]} 44... Rd8 {[%clk 0:00:24]} 45. Bg4 {[%clk
0:00:16.9]} 45... Kg7 {[%clk 0:00:23.1]} 46. Kd3 {[%clk 0:00:17.3]} 46... Kf6
{[%clk 0:00:23.7]} 47. Kxe3 {[%clk 0:00:17.7]} 47... Ke5 {[%clk 0:00:24.4]} 48.
Kd3 {[%clk 0:00:17.4]} 48... Kd5 {[%clk 0:00:24.8]} 49. Kc3 {[%clk 0:00:16.7]}
49... Kc5 {[%clk 0:00:24.9]} 50. Bf5 {[%clk 0:00:15.2]} 50... Kd5 {[%clk
0:00:25.2]} 51. Kb4 {[%clk 0:00:14.1]} 51... Kc6 {[%clk 0:00:25.3]} 52. Kc4
{[%clk 0:00:14.4]} 52... a5 {[%clk 0:00:23.5]} 53. Bg4 {[%clk 0:00:11.9]} 53...
Rf8 {[%clk 0:00:20.8]} 54. Kb3 {[%clk 0:00:07.8]} 54... Kc7 {[%clk 0:00:20.3]}
55. Ka2 {[%clk 0:00:07.7]} 55... Rf4 {[%clk 0:00:20.4]} 56. Bh3 {[%clk 0:00:08]}
56... Rd4 {[%clk 0:00:20.5]} 57. Bf5 {[%clk 0:00:07.9]} 57... Kd8 {[%clk
0:00:20.1]} 58. Bh3 {[%clk 0:00:08.1]} 58... Ke7 {[%clk 0:00:20.4]} 59. Bf5
{[%clk 0:00:08.2]} 59... Kf6 {[%clk 0:00:19.5]} 60. Bh3 {[%clk 0:00:08.8]} 60...
Ke5 {[%clk 0:00:19.1]} 61. Kb3 {[%clk 0:00:08.6]} 61... Kf6 {[%clk 0:00:18.6]}
62. Kc3 {[%clk 0:00:08.5]} 62... Rd6 {[%clk 0:00:17.7]} 63. Kc4 {[%clk
0:00:08.4]} 63... Ke7 {[%clk 0:00:17.5]} 64. Kb5 {[%clk 0:00:08.3]} 64... Rd3
{[%clk 0:00:16.8]} 65. Bg4 {[%clk 0:00:07.1]} 65... Rb3+ {[%clk 0:00:14.2]} 66.
Kc6 {[%clk 0:00:06.6]} 66... Kd8 {[%clk 0:00:14]} 67. a4 {[%clk 0:00:04.1]}
67... Rxb2 {[%clk 0:00:14.2]} 68. Be6 {[%clk 0:00:04.7]} 68... Rb4 {[%clk
0:00:14.2]} 69. Bf5 {[%clk 0:00:04.6]} 69... Rxa4 {[%clk 0:00:08.3]} 70. Kxb6
{[%clk 0:00:04.7]} 70... Rf4 {[%clk 0:00:08.6]} 71. Bh3 {[%clk 0:00:03.6]} 71...
a4 {[%clk 0:00:08.9]} 72. Kb5 {[%clk 0:00:04.1]} 72... a3 {[%clk 0:00:09.3]} 73.
Be6 {[%clk 0:00:03.4]} 73... Re4 {[%clk 0:00:09.4]} 74. Bb3 {[%clk 0:00:03.1]}
74... Kxd7 {[%clk 0:00:08.3]} 75. Kc5 {[%clk 0:00:01.9]} 75... Kc7 {[%clk
0:00:08.1]} 76. Bd5 {[%clk 0:00:02.1]} 76... Rf4 {[%clk 0:00:07.3]} 77. Bb3
{[%clk 0:00:01.8]} 77... Kd8 {[%clk 0:00:07.2]} 78. Kb5 {[%clk 0:00:01.7]} 78...
Ke7 {[%clk 0:00:07.5]} 79. Kc5 {[%clk 0:00:02.4]} 79... Kf6 {[%clk 0:00:07.9]}
80. Bd5 {[%clk 0:00:02.7]} 80... Kg5 {[%clk 0:00:07.7]} 81. Bb3 {[%clk
0:00:03.3]} 81... Kh4 {[%clk 0:00:07.7]} 82. Kb5 {[%clk 0:00:03.5]} 82... Kg3
{[%clk 0:00:08]} 83. Bc4 {[%clk 0:00:03.8]} 83... Kf2 {[%clk 0:00:08.2]} 84. Kb4
{[%clk 0:00:02.2]} 84... Rxc4+ {[%clk 0:00:08.1]} 85. Kxc4 {[%clk 0:00:01.7]}
85... a2 {[%clk 0:00:08.2]} 0-1

[Event "Early-Titled-Tuesday-Blitz-November-28-2023"]
[Site "Chess.com"]
[Date "2023.11.28"]
[Round "6"]
[White "defenceboy"]
[Black "Aradhya2000"]
[Result "1/2-1/2"]
[WhiteElo "2854"]
[BlackElo "2708"]
[TimeControl "180+1"]
[EndTime "9:15:24 PST"]
[Termination "Game drawn by repetition"]

1. d4 {[%clk 0:00:58.1]} 1... d5 {[%clk 0:02:59.8]} 2. c4 {[%clk 0:00:57.8]}
2... c6 {[%clk 0:03:00]} 3. Nf3 {[%clk 0:00:57.4]} 3... Nf6 {[%clk 0:03:00.3]}
4. e3 {[%clk 0:00:57.7]} 4... Bf5 {[%clk 0:03:00]} 5. Nc3 {[%clk 0:00:57.3]}
5... e6 {[%clk 0:03:00.5]} 6. Nh4 {[%clk 0:00:57.6]} 6... Bg6 {[%clk 0:03:01.1]}
7. Nxg6 {[%clk 0:00:57.8]} 7... hxg6 {[%clk 0:03:01.3]} 8. Bd2 {[%clk
0:00:57.9]} 8... Nbd7 {[%clk 0:03:01.3]} 9. g3 {[%clk 0:00:57.1]} 9... Be7
{[%clk 0:03:00.4]} 10. Bg2 {[%clk 0:00:57.5]} 10... dxc4 {[%clk 0:03:00.5]} 11.
O-O {[%clk 0:00:57.8]} 11... O-O {[%clk 0:02:31.8]} 12. e4 {[%clk 0:00:57.9]}
12... b5 {[%clk 0:02:26.5]} 13. e5 {[%clk 0:00:57]} 13... Nd5 {[%clk 0:02:25.9]}
14. h4 {[%clk 0:00:52.5]} 14... N7b6 {[%clk 0:02:14.7]} 15. Ne4 {[%clk
0:00:50.4]} 15... Na4 {[%clk 0:02:02.8]} 16. Rb1 {[%clk 0:00:44.4]} 16... c5
{[%clk 0:01:59.7]} 17. b3 {[%clk 0:00:31.9]} 17... Nab6 {[%clk 0:01:47.7]} 18.
dxc5 {[%clk 0:00:26]} 18... Nd7 {[%clk 0:01:48]} 19. bxc4 {[%clk 0:00:26.1]}
19... bxc4 {[%clk 0:01:48]} 20. h5 {[%clk 0:00:22.3]} 20... Nxe5 {[%clk
0:01:42]} 21. hxg6 {[%clk 0:00:22.4]} 21... Nxg6 {[%clk 0:01:41.7]} 22. Qe2
{[%clk 0:00:21.9]} 22... c3 {[%clk 0:01:40.6]} 23. Nxc3 {[%clk 0:00:21.7]} 23...
Nxc3 {[%clk 0:01:41]} 24. Bxc3 {[%clk 0:00:22.6]} 24... Bxc5 {[%clk 0:01:34.7]}
25. Bxa8 {[%clk 0:00:22.7]} 25... Qxa8 {[%clk 0:01:35.6]} 26. Rfe1 {[%clk
0:00:22.9]} 26... Rc8 {[%clk 0:01:34.3]} 27. Rbc1 {[%clk 0:00:20.4]} 27... Bb6
{[%clk 0:01:26.3]} 28. Qe4 {[%clk 0:00:20.1]} 28... Qxe4 {[%clk 0:00:51.7]} 29.
Rxe4 {[%clk 0:00:21]} 29... Rd8 {[%clk 0:00:52.3]} 30. Rc2 {[%clk 0:00:18.5]}
30... Rd3 {[%clk 0:00:51.7]} 31. Kg2 {[%clk 0:00:17.9]} 31... Kf8 {[%clk
0:00:46.5]} 32. a4 {[%clk 0:00:17.9]} 32... Rd5 {[%clk 0:00:41.6]} 33. Ra2
{[%clk 0:00:13.3]} 33... e5 {[%clk 0:00:36.6]} 34. a5 {[%clk 0:00:12.9]} 34...
Bc7 {[%clk 0:00:36.4]} 35. Rc4 {[%clk 0:00:12.6]} 35... Rd7 {[%clk 0:00:35.8]}
36. a6 {[%clk 0:00:12.2]} 36... Ke8 {[%clk 0:00:31.5]} 37. Rb2 {[%clk
0:00:11.6]} 37... Ne7 {[%clk 0:00:27.3]} 38. Rb7 {[%clk 0:00:10.5]} 38... Nd5
{[%clk 0:00:27.2]} 39. Bd2 {[%clk 0:00:06.2]} 39... Bb6 {[%clk 0:00:26]} 40.
Rxd7 {[%clk 0:00:05.7]} 40... Kxd7 {[%clk 0:00:26.1]} 41. Kf3 {[%clk 0:00:06.2]}
41... f5 {[%clk 0:00:19.6]} 42. Be3 {[%clk 0:00:06]} 42... e4+ {[%clk
0:00:17.7]} 43. Ke2 {[%clk 0:00:06.3]} 43... Bxe3 {[%clk 0:00:12.3]} 44. fxe3
{[%clk 0:00:07.2]} 44... Nc7 {[%clk 0:00:12.9]} 45. Rc5 {[%clk 0:00:07.6]} 45...
g6 {[%clk 0:00:12.8]} 46. Ra5 {[%clk 0:00:07.8]} 46... Kc6 {[%clk 0:00:12.9]}
47. Kd2 {[%clk 0:00:08]} 47... Kb6 {[%clk 0:00:13.4]} 48. Re5 {[%clk 0:00:08.7]}
48... Kxa6 {[%clk 0:00:13.9]} 49. Re7 {[%clk 0:00:09.2]} 49... Kb6 {[%clk
0:00:10.2]} 50. Rg7 {[%clk 0:00:09.8]} 50... Kc6 {[%clk 0:00:09.2]} 51. Rxg6+
{[%clk 0:00:10.2]} 51... Kd5 {[%clk 0:00:09.9]} 52. Rf6 {[%clk 0:00:10.4]} 52...
Ke5 {[%clk 0:00:08]} 53. Rf7 {[%clk 0:00:10.8]} 53... Nb5 {[%clk 0:00:04.5]} 54.
Rb7 {[%clk 0:00:10.3]} 54... a6 {[%clk 0:00:04.8]} 55. Rb6 {[%clk 0:00:10.2]}
55... Nd6 {[%clk 0:00:04.7]} 56. Rxa6 {[%clk 0:00:10.5]} 56... Nf7 {[%clk
0:00:04.9]} 57. Ke2 {[%clk 0:00:10.9]} 57... Ng5 {[%clk 0:00:05.1]} 58. Rg6
{[%clk 0:00:10.2]} 58... Ne6 {[%clk 0:00:04.1]} 59. Kd2 {[%clk 0:00:10]} 59...
Nc5 {[%clk 0:00:04.4]} 60. Kc3 {[%clk 0:00:10]} 60... Nd3 {[%clk 0:00:04.8]} 61.
Rg8 {[%clk 0:00:07.4]} 61... Ne1 {[%clk 0:00:04.3]} 62. Re8+ {[%clk 0:00:07]}
62... Kf6 {[%clk 0:00:04.3]} 63. Rf8+ {[%clk 0:00:04.2]} 63... Ke5 {[%clk
0:00:04.1]} 64. Re8+ {[%clk 0:00:04.6]} 64... Kf6 {[%clk 0:00:04.6]} 65. Rd8
{[%clk 0:00:05.2]} 65... Ng2 {[%clk 0:00:04.4]} 66. Kd4 {[%clk 0:00:05.2]} 66...
Kg5 {[%clk 0:00:04.7]} 67. Rg8+ {[%clk 0:00:05.3]} 67... Kf6 {[%clk 0:00:05.1]}
68. Rf8+ {[%clk 0:00:05.6]} 68... Kg5 {[%clk 0:00:05]} 69. Rg8+ {[%clk 0:00:06]}
69... Kf6 {[%clk 0:00:05.5]} 70. Ra8 {[%clk 0:00:06.9]} 70... Ne1 {[%clk
0:00:05.4]} 71. Ra6+ {[%clk 0:00:07]} 71... Kg5 {[%clk 0:00:05.4]} 72. Ra5
{[%clk 0:00:07.1]} 72... Nc2+ {[%clk 0:00:05.6]} 73. Ke5 {[%clk 0:00:06.7]}
73... Nxe3 {[%clk 0:00:06.5]} 74. Ra8 {[%clk 0:00:07.4]} 74... Ng4+ {[%clk
0:00:06.7]} 75. Kd4 {[%clk 0:00:07.2]} 75... Kf6 {[%clk 0:00:06.6]} 76. Rf8+
{[%clk 0:00:05.7]} 76... Ke6 {[%clk 0:00:07]} 77. Rg8 {[%clk 0:00:06]} 77... Kf6
{[%clk 0:00:07.4]} 78. Rf8+ {[%clk 0:00:05.9]} 78... Ke6 {[%clk 0:00:08]} 79.
Ra8 {[%clk 0:00:05.3]} 79... Kf6 {[%clk 0:00:08.5]} 80. Kd5 {[%clk 0:00:04.7]}
80... Ne3+ {[%clk 0:00:08.2]} 81. Kd4 {[%clk 0:00:04.4]} 81... Ng4 {[%clk
0:00:08.6]} 1/2-1/2